[Event "9th RTU Open 2019"]
[Site "Riga"]
[Date "2019.08.07"]
[Round "4.10"]
[White "Svane, Rasmus"]
[Black "Sirosh, Ilja"]
[Result "1-0"]
[ECO "A17"]
[WhiteElo "2615"]
[BlackElo "2407"]
[Annotator "ChessBase"]
[PlyCount "143"]
[EventDate "2019.08.05"]
[EventType "swiss"]
[EventCountry "LAT"]
[SourceTitle "playchess.com"]
[Source "ChessBase"]
[SourceQuality "1"]
[TimeControl "5400+30"]

1. Nf3 {[%emt 0:02:05]} Nf6 {[%emt 0:00:00]} 2. c4 {[%emt 0:00:10]} c5 {[%emt 0:00:00]} 3. Nc3 {[%emt 0:00:07]} d5 {[%emt 0:00:00]} 4. cxd5 {[%emt 0:00:08]} Nxd5 {[%emt 0:00:00]} 5. e3 {[%emt 0:00:10]} e6 {[%emt 0:00:20]} 6. Nxd5 {[%emt 0:05:52]} exd5 {[%emt 0:02:36]} 7. Bb5+ {[%emt 0:00:03]} Nc6 {[%emt 0:00:14]} 8. O-O {[%emt 0:00:31]} Bd6 {[%emt 0:00:17]} 9. d4 {[%emt 0:04:49]} cxd4 {[%emt 0:00:33]} 10. Qxd4 {[%emt 0:08:55]} O-O {[%emt 0:02:11]} 11. Qa4 {[%emt 0:00:02]} Re8 {[%emt 0:23:21]} 12. Bd2 {[%emt 0:14:49]} Bf5 {[%emt 0:31:00]} 13. Rfc1 {[%emt 0:17:44]} Re6 {[%emt 0:21:58]} 14. Bxc6 {[%emt 0:28:29]} bxc6 {[%emt 0:00:02]} 15. Bb4 {[%emt 0:04:09]} Be4 {[%emt 0:07:52]} 16. Bxd6 {[%emt 0:02:40]} Bxf3 {[%emt 0:02:01]} 17. Bg3 {[%emt 0:01:46]} Be4 {[%emt 0:01:49]} 18. Rxc6 {[%emt 0:00:46]} Qe8 {[%emt 0:00:52]} 19. Ra6 {[%emt 0:00:27]} Rxa6 {[%emt 0:02:46]} 20. Qxa6 {[%emt 0:00:04]} Qc8 {[%emt 0:00:05]} 21. Qxc8+ {[%emt 0:03:45]} Rxc8 {[%emt 0:00:01]} 22. Rd1 {[%emt 0:00:19]} Bc2 {[%emt 0:00:44]} 23. Re1 {[%emt 0:00:43]} f6 {[%emt 0:00:38]} 24. Bd6 {[%emt 0:00:05]} Kf7 {[%emt 0:00:40]} 25. Bb4 {[%emt 0:00:17]} Ke6 {[%emt 0:00:18]} 26. Bc3 {[%emt 0:00:47]} h5 {[%emt 0:00:34]} 27. Bd4 {[%emt 0:00:58]} a6 {[%emt 0:00:43]} 28. f3 {[%emt 0:00:12]} Bd3 {[%emt 0:00:37]} 29. Bc3 {[%emt 0:00:10]} Bc4 {[%emt 0:00:10]} 30. Ra1 {[%emt 0:00:41]} Kf5 {[%emt 0:00:49]} 31. Kf2 {[%emt 0:00:05]} Ke6 {[%emt 0:01:18]} 32. Ke1 {[%emt 0:00:02]} g5 {[%emt 0:00:50]} 33. Kd2 {[%emt 0:00:05]} f5 {[%emt 0:00:23]} 34. h3 {[%emt 0:00:58]} Rg8 {[%emt 0:00:28]} 35. Bd4 {[%emt 0:01:45]} h4 {[%emt 0:00:24]} 36. b3 {[%emt 0:01:42]} Bb5 {[%emt 0:00:01]} 37. Rc1 {[%emt 0:00:07]} g4 {[%emt 0:00:08]} 38. fxg4 {[%emt 0:01:37]} fxg4 {[%emt 0:00:01]} 39. a4 {[%emt 0:00:05]} Bd7 {[%emt 0:00:29]} 40. Rf1 {[%emt 0:00:04]} gxh3 {[%emt 0:02:11]} 41. gxh3 {[%emt 0:00:01]} Kd6 {[%emt 0:00:30]} 42. Rf4 {[%emt 0:01:11]} Bxh3 {[%emt 0:00:23]} 43. Rxh4 {[%emt 0:00:04]} Bf1 {[%emt 0:00:38]} 44. Rh6+ {[%emt 0:00:13]} Kd7 {[%emt 0:00:21]} 45. Be5 {[%emt 0:00:49]} Ke7 {[%emt 0:00:42]} 46. Kc3 {[%emt 0:00:19]} Rg4 {[%emt 0:00:29]} 47. Bd4 {[%emt 0:01:17]} Kd7 {[%emt 0:00:10]} 48. Kb4 {[%emt 0:00:09]} Rg8 {[%emt 0:00:46]} 49. Be5 {[%emt 0:00:55]} Rg5 {[%emt 0:00:32]} 50. Bd4 {[%emt 0:00:39]} Rg8 {[%emt 0:00:04]} 51. Be5 {[%emt 0:00:48]} Rg5 {[%emt 0:00:02]} 52. Bf4 {[%emt 0:00:09]} Rf5 {[%emt 0:00:51]} 53. Kc5 {[%emt 0:00:07]} a5 {[%emt 0:00:58]} 54. Kd4 {[%emt 0:01:03]} Be2 {[%emt 0:00:13]} 55. Rd6+ {[%emt 0:00:31]} Kc8 {[%emt 0:00:01]} 56. Rc6+ {[%emt 0:00:18]} Kd7 {[%emt 0:00:54]} 57. Rc5 {[%emt 0:00:31]} Bd1 {[%emt 0:00:08]} 58. Rb5 {[%emt 0:00:13]} Kc6 {[%emt 0:00:12]} 59. Kd3 {[%emt 0:00:46]} Rf7 {[%emt 0:01:34]} 60. Kd2 {[%emt 0:00:33]} Bxb3 {[%emt 0:00:13]} 61. Rxb3 {[%emt 0:00:10]} d4 {[%emt 0:00:03]} 62. Rb5 {[%emt 0:00:41]} dxe3+ {[%emt 0:00:05]} 63. Kxe3 {[%emt 0:00:41]} Rb7 {[%emt 0:01:02]} 64. Rxa5 {[%emt 0:00:12]} Rb3+ {[%emt 0:00:06]} 65. Kd2 {[%emt 0:00:22]} Kb6 {[%emt 0:00:17]} 66. Ra8 {[%emt 0:00:42]} Ra3 {[%emt 0:01:46]} 67. Be3+ {[%emt 0:00:22]} Kb7 {[%emt 0:00:14]} 68. Ra7+ {[%emt 0:00:11]} Kb8 {[%emt 0:00:11]} 69. Ra5 {[%emt 0:00:10]} Kb7 {[%emt 0:01:06]} 70. Bd4 {[%emt 0:00:08]} Rb3 {[%emt 0:00:31]} 71. Kc2 {[%emt 0:00:10]} Rb4 {[%emt 0:00:04]} 72. Kc3 {[%emt 0:00:09]} 1-0

[Event "9th RTU Open 2019"]
[Site "Riga"]
[Date "2019.08.07"]
[Round "4.11"]
[White "Krivonosov, Oleg"]
[Black "Dastan, Muhammed Batuhan"]
[Result "1/2-1/2"]
[ECO "A88"]
[WhiteElo "2416"]
[BlackElo "2565"]
[Annotator "ChessBase"]
[PlyCount "45"]
[EventDate "2019.08.05"]
[EventType "swiss"]
[EventCountry "LAT"]
[SourceTitle "playchess.com"]
[Source "ChessBase"]
[SourceQuality "1"]
[TimeControl "5400+30"]

1. Nf3 {[%emt 0:00:00]} f5 {[%emt 0:00:00]} 2. g3 {[%emt 0:00:01]} g6 {[%emt 0:00:00]} 3. Bg2 {[%emt 0:00:29]} Bg7 {[%emt 0:00:00]} 4. d4 {[%emt 0:00:27]} Nf6 {[%emt 0:00:00]} 5. O-O {[%emt 0:00:36]} O-O {[%emt 0:00:00]} 6. b3 {[%emt 0:01:15]} d6 {[%emt 0:00:29]} 7. Bb2 {[%emt 0:00:18]} c6 {[%emt 0:00:04]} 8. c4 {[%emt 0:01:19]} a5 {[%emt 0:00:05]} 9. Nc3 {[%emt 0:01:43]} Na6 {[%emt 0:00:06]} 10. d5 {[%emt 0:01:01]} Bd7 {[%emt 0:00:36]} 11. Rb1 {[%emt 0:07:14]} Nc5 {[%emt 0:04:35]} 12. Nd4 {[%emt 0:02:29]} Rc8 {[%emt 0:10:01]} 13. Ba1 {[%emt 0:09:31]} Qe8 {[%emt 0:03:45]} 14. Qd2 {[%emt 0:05:41]} Qf7 {[%emt 0:06:16]} 15. Rbd1 {[%emt 0:14:27]} a4 {[%emt 0:28:08]} 16. Nxa4 {[%emt 0:05:39]} Nxa4 {[%emt 0:12:07]} 17. bxa4 {[%emt 0:02:00]} Ne4 {[%emt 0:00:27]} 18. Qe3 {[%emt 0:11:57]} cxd5 {[%emt 0:00:52]} 19. cxd5 {[%emt 0:00:08]} Rc4 {[%emt 0:01:23]} 20. Qb3 {[%emt 0:08:27]} Rfc8 {[%emt 0:00:13]} 21. Nc6 {[%emt 0:02:40]} Bxa1 {[%emt 0:04:11]} 22. Rxa1 {[%emt 0:02:39]} R8xc6 {[%emt 0:01:21]} 23. dxc6 {[%emt 0:04:06]} 1/2-1/2

[Event "9th RTU Open 2019"]
[Site "Riga"]
[Date "2019.08.07"]
[Round "4.12"]
[White "Tania, Sachdev"]
[Black "Theodorou, Nikolas"]
[Result "0-1"]
[ECO "E71"]
[WhiteElo "2401"]
[BlackElo "2543"]
[Annotator "ChessBase"]
[PlyCount "64"]
[EventDate "2019.08.05"]
[EventType "swiss"]
[EventCountry "LAT"]
[SourceTitle "playchess.com"]
[Source "ChessBase"]
[SourceQuality "1"]
[TimeControl "5400+30"]

1. d4 {[%emt 0:00:00]} Nf6 {[%emt 0:05:43]} 2. c4 {[%emt 0:00:00]} g6 {[%emt 0:00:07]} 3. Nc3 {[%emt 0:00:00]} Bg7 {[%emt 0:00:05]} 4. e4 {[%emt 0:00:22]} d6 {[%emt 0:00:05]} 5. h3 {[%emt 0:00:38]} O-O {[%emt 0:00:22]} 6. Bg5 {[%emt 0:00:02]} c6 {[%emt 0:04:53]} 7. Qd2 {[%emt 0:10:08]} d5 {[%emt 0:07:37]} 8. cxd5 {[%emt 0:23:46]} cxd5 {[%emt 0:00:10]} 9. Bxf6 {[%emt 0:00:03]} exf6 {[%emt 0:05:07]} 10. exd5 {[%emt 0:00:03]} Re8+ {[%emt 0:03:33]} 11. Be2 {[%emt 0:00:08]} b5 {[%emt 0:00:30]} 12. Nxb5 {[%emt 0:15:20]} Qxd5 {[%emt 0:12:28]} 13. Kf1 {[%emt 0:16:44]} Bb7 {[%emt 0:03:29]} 14. Nf3 {[%emt 0:00:28]} Na6 {[%emt 0:00:30]} 15. Kg1 {[%emt 0:04:14]} Re7 {[%emt 0:09:51]} 16. Kh2 {[%emt 0:11:18]} Bh6 {[%emt 0:01:49]} 17. Qd1 {[%emt 0:06:54]} Rae8 {[%emt 0:15:30]} 18. Bf1 {[%emt 0:00:04]} Bf4+ {[%emt 0:04:56]} 19. Kg1 {[%emt 0:00:02]} Nc7 {[%emt 0:01:22]} 20. Nc3 {[%emt 0:04:01]} Qh5 {[%emt 0:03:24]} 21. Ne2 {[%emt 0:02:21]} Nd5 {[%emt 0:05:07]} 22. Ng3 {[%emt 0:00:35]} Qh6 {[%emt 0:02:45]} 23. Bb5 {[%emt 0:01:54]} Ne3 {[%emt 0:06:16]} 24. fxe3 {[%emt 0:01:26]} Bxg3 {[%emt 0:00:21]} 25. Qd2 {[%emt 0:00:09]} Rb8 {[%emt 0:02:10]} 26. Nh2 {[%emt 0:00:47]} f5 {[%emt 0:01:54]} 27. Nf1 {[%emt 0:00:17]} f4 {[%emt 0:00:45]} 28. e4 {[%emt 0:01:14]} Qh4 {[%emt 0:00:59]} 29. d5 {[%emt 0:00:58]} Rxe4 {[%emt 0:00:38]} 30. Bc6 {[%emt 0:00:29]} Ba6 {[%emt 0:00:45]} 31. Nxg3 {[%emt 0:00:13]} fxg3 {[%emt 0:00:10]} 32. d6 {[%emt 0:00:12]} Qd8 {[%emt 0:01:05]} 0-1

[Event "9th RTU Open 2019"]
[Site "Riga"]
[Date "2019.08.07"]
[Round "4.13"]
[White "Meshkovs, Nikita"]
[Black "Akash G"]
[Result "1-0"]
[ECO "E90"]
[WhiteElo "2550"]
[BlackElo "2394"]
[Annotator "ChessBase"]
[PlyCount "75"]
[EventDate "2019.08.05"]
[EventType "swiss"]
[EventCountry "LAT"]
[SourceTitle "playchess.com"]
[Source "ChessBase"]
[SourceQuality "1"]
[TimeControl "5400+30"]

1. Nf3 {[%emt 0:00:00]} Nf6 {[%emt 0:00:17]} 2. c4 {[%emt 0:00:00]} g6 {[%emt 0:00:22]} 3. Nc3 {[%emt 0:00:06]} Bg7 {[%emt 0:00:06]} 4. e4 {[%emt 0:00:08]} d6 {[%emt 0:00:05]} 5. d4 {[%emt 0:00:06]} O-O {[%emt 0:00:07]} 6. h3 {[%emt 0:00:28]} e5 {[%emt 0:00:21]} 7. d5 {[%emt 0:00:08]} a5 {[%emt 0:00:14]} 8. g4 {[%emt 0:00:13]} Na6 {[%emt 0:00:26]} 9. Be3 {[%emt 0:00:10]} Nd7 {[%emt 0:00:46]} 10. a3 {[%emt 0:00:09]} Nac5 {[%emt 0:00:16]} 11. Rg1 {[%emt 0:03:31]} a4 {[%emt 0:02:02]} 12. Nd2 {[%emt 0:00:08]} c6 {[%emt 0:00:25]} 13. Qc2 {[%emt 0:00:09]} b6 {[%emt 0:02:13]} 14. O-O-O {[%emt 0:03:26]} Ba6 {[%emt 0:02:31]} 15. Kb1 {[%emt 0:04:33]} cxd5 {[%emt 0:07:03]} 16. cxd5 {[%emt 0:02:42]} Bxf1 {[%emt 0:10:29]} 17. Rdxf1 {[%emt 0:04:01]} b5 {[%emt 0:03:04]} 18. Rc1 {[%emt 0:07:09]} Rc8 {[%emt 0:15:20]} 19. Na2 {[%emt 0:04:25]} Nb8 {[%emt 0:04:24]} 20. Nb4 {[%emt 0:04:47]} Qd7 {[%emt 0:02:14]} 21. Qd1 {[%emt 0:03:05]} Kh8 {[%emt 0:07:48]} 22. h4 {[%emt 0:09:11]} Nca6 {[%emt 0:06:25]} 23. Nd3 {[%emt 0:11:29]} Rxc1+ {[%emt 0:03:40]} 24. Qxc1 {[%emt 0:00:35]} Rc8 {[%emt 0:01:11]} 25. Qf1 {[%emt 0:04:11]} f5 {[%emt 0:05:14]} 26. gxf5 {[%emt 0:06:06]} gxf5 {[%emt 0:00:07]} 27. f4 {[%emt 0:01:42]} Nc5 {[%emt 0:10:15]} 28. Bxc5 {[%emt 0:05:57]} fxe4 {[%emt 0:01:13]} 29. Nxe4 {[%emt 0:09:14]} dxc5 {[%emt 0:00:06]} 30. f5 {[%emt 0:07:19]} Qxd5 {[%emt 0:02:17]} 31. Ndxc5 {[%emt 0:03:08]} Rxc5 {[%emt 0:03:47]} 32. Nxc5 {[%emt 0:00:07]} Qxc5 {[%emt 0:00:04]} 33. f6 {[%emt 0:00:07]} Bh6 {[%emt 0:01:05]} 34. f7 {[%emt 0:02:48]} Bg7 {[%emt 0:00:05]} 35. Qg2 {[%emt 0:00:02]} Qf8 {[%emt 0:00:43]} 36. Qb7 {[%emt 0:00:02]} Qd8 {[%emt 0:05:30]} 37. Qxb5 {[%emt 0:00:29]} Nd7 {[%emt 0:03:05]} 38. Rd1 {[%emt 0:00:12]} 1-0

[Event "9th RTU Open 2019"]
[Site "Riga"]
[Date "2019.08.07"]
[Round "4.14"]
[White "Deepan Chakkravarthy J."]
[Black "Seeman, Tarvo"]
[Result "1-0"]
[ECO "E83"]
[WhiteElo "2532"]
[BlackElo "2377"]
[Annotator "ChessBase"]
[PlyCount "49"]
[EventDate "2019.08.05"]
[EventType "swiss"]
[EventCountry "LAT"]
[SourceTitle "playchess.com"]
[Source "ChessBase"]
[SourceQuality "1"]
[TimeControl "5400+30"]

1. d4 {[%emt 0:00:30]} Nf6 {[%emt 0:02:21]} 2. c4 {[%emt 0:00:04]} g6 {[%emt 0:00:40]} 3. Nc3 {[%emt 0:00:05]} Bg7 {[%emt 0:00:06]} 4. e4 {[%emt 0:00:04]} d6 {[%emt 0:00:17]} 5. f3 {[%emt 0:00:05]} O-O {[%emt 0:06:32]} 6. Nge2 {[%emt 0:00:06]} Nc6 {[%emt 0:04:08]} 7. Be3 {[%emt 0:00:10]} a6 {[%emt 0:00:21]} 8. Qd2 {[%emt 0:00:05]} Na5 {[%emt 0:00:22]} 9. Ng3 {[%emt 0:02:25]} b5 {[%emt 0:00:48]} 10. Bh6 {[%emt 0:00:05]} Bxh6 {[%emt 0:08:19]} 11. Qxh6 {[%emt 0:00:40]} Nxc4 {[%emt 0:00:18]} 12. Bxc4 {[%emt 0:00:05]} bxc4 {[%emt 0:00:05]} 13. h4 {[%emt 0:00:04]} c5 {[%emt 0:07:01]} 14. d5 {[%emt 0:15:43]} e6 {[%emt 0:01:59]} 15. h5 {[%emt 0:00:15]} exd5 {[%emt 0:13:02]} 16. Nxd5 {[%emt 0:00:14]} Ra7 {[%emt 0:00:21]} 17. Nc3 {[%emt 0:00:32]} d5 {[%emt 0:32:30]} 18. O-O-O {[%emt 0:05:48]} d4 {[%emt 0:03:34]} 19. e5 {[%emt 0:02:04]} Nd5 {[%emt 0:03:29]} 20. Nge4 {[%emt 0:00:14]} f5 {[%emt 0:01:37]} 21. Nxd5 {[%emt 0:14:32]} fxe4 {[%emt 0:00:08]} 22. fxe4 {[%emt 0:00:28]} Be6 {[%emt 0:01:50]} 23. hxg6 {[%emt 0:02:58]} Bxd5 {[%emt 0:00:18]} 24. exd5 {[%emt 0:00:20]} c3 {[%emt 0:01:42]} 25. bxc3 {[%emt 0:02:51]} 1-0

[Event "9th RTU Open 2019"]
[Site "Riga"]
[Date "2019.08.07"]
[Round "4.15"]
[White "Gukesh D"]
[Black "Keinanen, Toivo"]
[Result "1/2-1/2"]
[ECO "C00"]
[WhiteElo "2520"]
[BlackElo "2386"]
[Annotator "ChessBase"]
[PlyCount "57"]
[EventDate "2019.08.05"]
[EventType "swiss"]
[EventCountry "LAT"]
[SourceTitle "playchess.com"]
[Source "ChessBase"]
[SourceQuality "1"]
[TimeControl "5400+30"]

1. Nf3 {[%emt 0:00:00]} d5 {[%emt 0:05:12]} 2. g3 {[%emt 0:00:00]} Nf6 {[%emt 0:00:08]} 3. Bg2 {[%emt 0:00:05]} e6 {[%emt 0:00:04]} 4. O-O {[%emt 0:00:10]} Be7 {[%emt 0:00:04]} 5. d3 {[%emt 0:01:11]} O-O {[%emt 0:00:40]} 6. Nbd2 {[%emt 0:00:13]} c5 {[%emt 0:00:13]} 7. e4 {[%emt 0:00:09]} Nc6 {[%emt 0:00:26]} 8. Re1 {[%emt 0:00:41]} b5 {[%emt 0:00:11]} 9. a4 {[%emt 0:05:18]} b4 {[%emt 0:03:10]} 10. exd5 {[%emt 0:00:22]} exd5 {[%emt 0:01:12]} 11. d4 {[%emt 0:00:16]} cxd4 {[%emt 0:03:37]} 12. Nb3 {[%emt 0:00:11]} Bg4 {[%emt 0:00:40]} 13. Qd3 {[%emt 0:13:54]} Bxf3 {[%emt 0:20:24]} 14. Bxf3 {[%emt 0:00:48]} Rc8 {[%emt 0:00:33]} 15. Re2 {[%emt 0:14:50]} Re8 {[%emt 0:06:36]} 16. Bf4 {[%emt 0:11:04]} Bd6 {[%emt 0:04:50]} 17. Rxe8+ {[%emt 0:02:01]} Nxe8 {[%emt 0:00:10]} 18. Bxd6 {[%emt 0:03:36]} Qxd6 {[%emt 0:01:25]} 19. Nxd4 {[%emt 0:04:11]} Nxd4 {[%emt 0:10:19]} 20. Qxd4 {[%emt 0:02:05]} Qf6 {[%emt 0:06:06]} 21. Qxd5 {[%emt 0:04:32]} Qxb2 {[%emt 0:02:01]} 22. Re1 {[%emt 0:02:40]} Nf6 {[%emt 0:01:41]} 23. Qb7 {[%emt 0:16:44]} Qxc2 {[%emt 0:02:49]} 24. Qxb4 {[%emt 0:03:07]} Qc3 {[%emt 0:05:28]} 25. Qxc3 {[%emt 0:00:49]} Rxc3 {[%emt 0:00:01]} 26. Rb1 {[%emt 0:04:19]} g6 {[%emt 0:07:32]} 27. Kg2 {[%emt 0:02:37]} Rc7 {[%emt 0:02:35]} 28. a5 {[%emt 0:04:03]} Nd7 {[%emt 0:02:14]} 29. a6 {[%emt 0:02:16]} 1/2-1/2

[Event "9th RTU Open 2019"]
[Site "Riga"]
[Date "2019.08.07"]
[Round "4.16"]
[White "Baskin, Robert"]
[Black "Thybo, Jesper Sondergaard"]
[Result "0-1"]
[ECO "B56"]
[WhiteElo "2398"]
[BlackElo "2528"]
[Annotator "ChessBase"]
[PlyCount "62"]
[EventDate "2019.08.05"]
[EventType "swiss"]
[EventCountry "LAT"]
[SourceTitle "playchess.com"]
[Source "ChessBase"]
[SourceQuality "1"]
[TimeControl "5400+30"]

1. e4 {[%emt 0:01:40]} c5 {[%emt 0:00:00]} 2. Nf3 {[%emt 0:00:09]} d6 {[%emt 0:00:00]} 3. d4 {[%emt 0:00:05]} cxd4 {[%emt 0:00:00]} 4. Nxd4 {[%emt 0:00:09]} Nf6 {[%emt 0:00:00]} 5. Nc3 {[%emt 0:00:05]} Nc6 {[%emt 0:00:06]} 6. f3 {[%emt 0:00:27]} e5 {[%emt 0:00:33]} 7. Nb3 {[%emt 0:00:07]} Be7 {[%emt 0:00:15]} 8. Be3 {[%emt 0:00:12]} Be6 {[%emt 0:00:17]} 9. Nd5 {[%emt 0:00:21]} Bxd5 {[%emt 0:00:29]} 10. exd5 {[%emt 0:00:06]} Nb4 {[%emt 0:00:07]} 11. c4 {[%emt 0:00:26]} a5 {[%emt 0:00:29]} 12. Qd2 {[%emt 0:02:36]} b6 {[%emt 0:00:24]} 13. Nc1 {[%emt 0:03:59]} O-O {[%emt 0:02:15]} 14. Be2 {[%emt 0:01:26]} Na6 {[%emt 0:02:30]} 15. O-O {[%emt 0:07:25]} Nh5 {[%emt 0:02:14]} 16. b3 {[%emt 0:11:00]} f5 {[%emt 0:02:27]} 17. a3 {[%emt 0:00:24]} f4 {[%emt 0:04:23]} 18. Bf2 {[%emt 0:00:09]} Bh4 {[%emt 0:00:36]} 19. Nd3 {[%emt 0:03:48]} Bg3 {[%emt 0:29:13]} 20. Rfb1 {[%emt 0:05:13]} Qh4 {[%emt 0:04:02]} 21. hxg3 {[%emt 0:06:57]} fxg3 {[%emt 0:02:27]} 22. Be3 {[%emt 0:00:26]} e4 {[%emt 0:12:48]} 23. Ne1 {[%emt 0:05:52]} Nf4 {[%emt 0:00:43]} 24. Bd1 {[%emt 0:08:50]} Qh2+ {[%emt 0:03:28]} 25. Kf1 {[%emt 0:01:04]} Qh1+ {[%emt 0:00:56]} 26. Bg1 {[%emt 0:00:05]} Rae8 {[%emt 0:02:42]} 27. Ra2 {[%emt 0:04:46]} Nc5 {[%emt 0:01:53]} 28. Qd4 {[%emt 0:02:47]} Nh3 {[%emt 0:04:28]} 29. b4 {[%emt 0:06:42]} exf3 {[%emt 0:01:32]} 30. Nxf3 {[%emt 0:04:51]} Re4 {[%emt 0:00:12]} 31. Qxe4 {[%emt 0:00:57]} Qxg1+ {[%emt 0:00:50]} 0-1

[Event "9th RTU Open 2019"]
[Site "Riga"]
[Date "2019.08.07"]
[Round "4.17"]
[White "Stauskas, Lukas"]
[Black "Sulskis, Sarunas"]
[Result "0-1"]
[ECO "E39"]
[WhiteElo "2306"]
[BlackElo "2528"]
[Annotator "ChessBase"]
[PlyCount "66"]
[EventDate "2019.08.05"]
[EventType "swiss"]
[EventCountry "LAT"]
[SourceTitle "playchess.com"]
[Source "ChessBase"]
[SourceQuality "1"]
[TimeControl "5400+30"]

1. d4 {[%emt 0:00:00]} Nf6 {[%emt 0:00:00]} 2. c4 {[%emt 0:00:00]} e6 {[%emt 0:00:00]} 3. Nc3 {[%emt 0:00:00]} Bb4 {[%emt 0:00:09]} 4. Qc2 {[%emt 0:00:00]} c5 {[%emt 0:01:39]} 5. dxc5 {[%emt 0:00:11]} O-O {[%emt 0:01:22]} 6. Nf3 {[%emt 0:00:20]} Na6 {[%emt 0:00:45]} 7. g3 {[%emt 0:00:20]} Nxc5 {[%emt 0:00:13]} 8. Bg2 {[%emt 0:00:08]} b6 {[%emt 0:00:37]} 9. O-O {[%emt 0:00:15]} Bb7 {[%emt 0:00:22]} 10. Nb5 {[%emt 0:00:36]} Be4 {[%emt 0:00:38]} 11. Qd1 {[%emt 0:00:23]} Nb7 {[%emt 0:01:11]} 12. a3 {[%emt 0:12:19]} Be7 {[%emt 0:08:43]} 13. Bf4 {[%emt 0:03:43]} Rc8 {[%emt 0:04:08]} 14. Rc1 {[%emt 0:03:51]} a6 {[%emt 0:01:15]} 15. Nd6 {[%emt 0:06:05]} Nxd6 {[%emt 0:06:54]} 16. Bxd6 {[%emt 0:00:06]} Bxd6 {[%emt 0:00:09]} 17. Qxd6 {[%emt 0:00:06]} Rc6 {[%emt 0:00:32]} 18. Qd4 {[%emt 0:02:03]} Qc7 {[%emt 0:09:04]} 19. Ne5 {[%emt 0:06:00]} Bxg2 {[%emt 0:05:20]} 20. Kxg2 {[%emt 0:00:26]} Rc5 {[%emt 0:00:21]} 21. Nd3 {[%emt 0:00:36]} Rh5 {[%emt 0:04:22]} 22. f3 {[%emt 0:24:35]} e5 {[%emt 0:03:44]} 23. Qe3 {[%emt 0:01:10]} e4 {[%emt 0:02:05]} 24. Nf2 {[%emt 0:02:29]} Re8 {[%emt 0:02:53]} 25. Qd4 {[%emt 0:03:51]} Qc6 {[%emt 0:02:27]} 26. Rfd1 {[%emt 0:01:02]} Rhe5 {[%emt 0:06:31]} 27. Rc3 {[%emt 0:01:32]} h5 {[%emt 0:00:53]} 28. Kf1 {[%emt 0:09:24]} exf3 {[%emt 0:14:14]} 29. exf3 {[%emt 0:00:11]} Re2 {[%emt 0:01:15]} 30. Rd2 {[%emt 0:05:45]} Re1+ {[%emt 0:03:56]} 31. Kg2 {[%emt 0:00:02]} Ng4 {[%emt 0:00:45]} 32. Qxd7 {[%emt 0:03:21]} Qxd7 {[%emt 0:01:11]} 33. Rxd7 {[%emt 0:00:07]} Nxf2 {[%emt 0:00:06]} 0-1

[Event "9th RTU Open 2019"]
[Site "Riga"]
[Date "2019.08.07"]
[Round "4.18"]
[White "Grigorov, Grigor"]
[Black "Maltsevskaya, Aleksandra"]
[Result "1-0"]
[ECO "E60"]
[WhiteElo "2501"]
[BlackElo "2294"]
[Annotator "ChessBase"]
[PlyCount "85"]
[EventDate "2019.08.05"]
[EventType "swiss"]
[EventCountry "LAT"]
[SourceTitle "playchess.com"]
[Source "ChessBase"]
[SourceQuality "1"]
[TimeControl "5400+30"]

1. Nf3 {[%emt 0:00:00]} Nf6 {[%emt 0:00:00]} 2. c4 {[%emt 0:00:00]} g6 {[%emt 0:00:38]} 3. b3 {[%emt 0:00:00]} Bg7 {[%emt 0:00:04]} 4. Bb2 {[%emt 0:00:00]} O-O {[%emt 0:00:07]} 5. g3 {[%emt 0:00:07]} d6 {[%emt 0:00:14]} 6. d4 {[%emt 0:00:10]} b6 {[%emt 0:06:14]} 7. Bg2 {[%emt 0:00:55]} Bb7 {[%emt 0:00:04]} 8. Nc3 {[%emt 0:03:09]} Ne4 {[%emt 0:02:34]} 9. O-O {[%emt 0:02:59]} Nd7 {[%emt 0:09:45]} 10. Qc2 {[%emt 0:03:42]} Nxc3 {[%emt 0:01:44]} 11. Bxc3 {[%emt 0:00:09]} e5 {[%emt 0:07:10]} 12. dxe5 {[%emt 0:12:44]} Nxe5 {[%emt 0:01:31]} 13. Nxe5 {[%emt 0:02:46]} Bxg2 {[%emt 0:00:09]} 14. Nxf7 {[%emt 0:00:22]} Rxf7 {[%emt 0:10:04]} 15. Kxg2 {[%emt 0:00:08]} Bxc3 {[%emt 0:00:02]} 16. Qxc3 {[%emt 0:00:10]} Qd7 {[%emt 0:00:03]} 17. e4 {[%emt 0:03:07]} Re8 {[%emt 0:01:38]} 18. Rae1 {[%emt 0:00:33]} a5 {[%emt 0:03:20]} 19. Re3 {[%emt 0:08:45]} a4 {[%emt 0:03:51]} 20. b4 {[%emt 0:07:52]} h5 {[%emt 0:07:02]} 21. h4 {[%emt 0:05:01]} Qc6 {[%emt 0:06:54]} 22. Qd4 {[%emt 0:02:23]} b5 {[%emt 0:02:13]} 23. Qd5 {[%emt 0:03:29]} Qxc4 {[%emt 0:04:04]} 24. Qxc4 {[%emt 0:00:08]} bxc4 {[%emt 0:00:03]} 25. Rc1 {[%emt 0:00:09]} Rfe7 {[%emt 0:09:55]} 26. Rxc4 {[%emt 0:00:28]} d5 {[%emt 0:00:04]} 27. exd5 {[%emt 0:00:10]} Rxe3 {[%emt 0:00:03]} 28. fxe3 {[%emt 0:00:09]} Rxe3 {[%emt 0:00:02]} 29. Rxc7 {[%emt 0:00:06]} Kf8 {[%emt 0:10:40]} 30. d6 {[%emt 0:02:56]} Rd3 {[%emt 0:01:18]} 31. Rc8+ {[%emt 0:00:29]} Kf7 {[%emt 0:00:05]} 32. Ra8 {[%emt 0:00:06]} Ke6 {[%emt 0:05:03]} 33. Rxa4 {[%emt 0:00:08]} Kf5 {[%emt 0:00:06]} 34. b5 {[%emt 0:03:53]} Rxd6 {[%emt 0:00:23]} 35. Rf4+ {[%emt 0:00:18]} Ke5 {[%emt 0:00:03]} 36. a4 {[%emt 0:00:05]} Rd2+ {[%emt 0:00:28]} 37. Kh3 {[%emt 0:02:46]} Rb2 {[%emt 0:00:14]} 38. Rc4 {[%emt 0:00:08]} Kf5 {[%emt 0:01:29]} 39. Rc5+ {[%emt 0:00:44]} Ke4 {[%emt 0:00:05]} 40. a5 {[%emt 0:00:50]} Kd4 {[%emt 0:00:15]} 41. Rg5 {[%emt 0:00:21]} Ke3 {[%emt 0:00:05]} 42. Rxg6 {[%emt 0:01:21]} Kf2 {[%emt 0:01:36]} 43. Rg5 {[%emt 0:00:34]} 1-0